[Event "Early-Titled-Tuesday-Blitz-February-13-2024"]
[Site "Chess.com"]
[Date "2024.02.13"]
[Round "5"]
[White "Dyadya81"]
[Black "MokshAD1603"]
[Result "1-0"]
[WhiteElo "2820"]
[BlackElo "2605"]
[TimeControl "180+1"]
[EndTime "9:00:19 PST"]
[Termination "Dyadya81 won by resignation"]

1. e4 {[%clk 0:03:00.9]} 1... e5 {[%clk 0:02:49.5]} 2. d4 {[%clk 0:02:57.9]}
2... exd4 {[%clk 0:02:45.9]} 3. Qxd4 {[%clk 0:02:58.8]} 3... Nc6 {[%clk
0:02:45.7]} 4. Qe3 {[%clk 0:02:59.1]} 4... Nf6 {[%clk 0:02:45.1]} 5. Nc3 {[%clk
0:02:59.6]} 5... Bb4 {[%clk 0:02:45.8]} 6. Bd2 {[%clk 0:03:00.1]} 6... O-O
{[%clk 0:02:46.5]} 7. O-O-O {[%clk 0:02:59.9]} 7... Re8 {[%clk 0:02:47]} 8. Bc4
{[%clk 0:03:00.5]} 8... d6 {[%clk 0:02:33.3]} 9. Nf3 {[%clk 0:02:59.4]} 9... Be6
{[%clk 0:02:20.4]} 10. Bxe6 {[%clk 0:02:57.1]} 10... Rxe6 {[%clk 0:02:21.3]} 11.
Ng5 {[%clk 0:02:46.3]} 11... Re8 {[%clk 0:02:18.5]} 12. Qg3 {[%clk 0:02:38.1]}
12... Ne5 {[%clk 0:01:50.8]} 13. a3 {[%clk 0:02:15.5]} 13... Ba5 {[%clk
0:01:48]} 14. b3 {[%clk 0:02:11.3]} 14... h6 {[%clk 0:01:31.1]} 15. h4 {[%clk
0:02:11.1]} 15... Qd7 {[%clk 0:01:21.3]} 16. f3 {[%clk 0:01:55.1]} 16... Qc6
{[%clk 0:01:09]} 17. Kb2 {[%clk 0:01:50.1]} 17... Qb6 {[%clk 0:01:07.9]} 18. Ka2
{[%clk 0:01:39.6]} 18... Qc6 {[%clk 0:01:07.4]} 19. Kb2 {[%clk 0:01:31]} 19...
Qb6 {[%clk 0:01:06.9]} 20. Na4 {[%clk 0:01:23.7]} 20... Qd4+ {[%clk 0:00:52.9]}
21. Bc3 {[%clk 0:01:17.5]} 21... Bxc3+ {[%clk 0:00:53.3]} 22. Nxc3 {[%clk
0:01:18.2]} 22... Qc5 {[%clk 0:00:54]} 23. Nh3 {[%clk 0:01:14.6]} 23... b5
{[%clk 0:00:51.7]} 24. Qf2 {[%clk 0:01:13.6]} 24... Qc6 {[%clk 0:00:49.9]} 25.
Nf4 {[%clk 0:01:09.6]} 25... a5 {[%clk 0:00:49.9]} 26. Ncd5 {[%clk 0:01:07.8]}
26... Nfd7 {[%clk 0:00:44.1]} 27. Qd4 {[%clk 0:01:00.9]} 27... a4 {[%clk
0:00:42.1]} 28. Qc3 {[%clk 0:00:55.2]} 28... Qxc3+ {[%clk 0:00:40.9]} 29. Nxc3
{[%clk 0:00:56.1]} 29... axb3 {[%clk 0:00:38.8]} 30. cxb3 {[%clk 0:00:55.4]}
30... Rab8 {[%clk 0:00:36.4]} 31. Nfd5 {[%clk 0:00:55.2]} 31... Rb7 {[%clk
0:00:31.5]} 32. Rd2 {[%clk 0:00:44.5]} 32... Reb8 {[%clk 0:00:29]} 33. Rhd1
{[%clk 0:00:41.9]} 33... Kf8 {[%clk 0:00:29.6]} 34. Nb4 {[%clk 0:00:38.4]} 34...
Nc5 {[%clk 0:00:27.2]} 35. Kc2 {[%clk 0:00:35.3]} 35... Ke8 {[%clk 0:00:25.8]}
36. f4 {[%clk 0:00:34.3]} 36... Ned7 {[%clk 0:00:25.2]} 37. Nc6 {[%clk
0:00:31.2]} 37... Ra8 {[%clk 0:00:25.7]} 38. Kb2 {[%clk 0:00:29.6]} 38... Nb6
{[%clk 0:00:20]} 39. e5 {[%clk 0:00:26]} 39... Nc8 {[%clk 0:00:17.5]} 40. f5
{[%clk 0:00:18.9]} 40... Nd7 {[%clk 0:00:16]} 41. e6 {[%clk 0:00:15.7]} 41...
Nf6 {[%clk 0:00:16.2]} 42. exf7+ {[%clk 0:00:15.2]} 42... Kxf7 {[%clk
0:00:16.4]} 43. Nd8+ {[%clk 0:00:15.7]} 1-0

[Event "Early-Titled-Tuesday-Blitz-February-13-2024"]
[Site "Chess.com"]
[Date "2024.02.13"]
[Round "5"]
[White "wadsy27"]
[Black "bitter-cikolata"]
[Result "0-1"]
[WhiteElo "2615"]
[BlackElo "2503"]
[TimeControl "180+1"]
[EndTime "9:00:19 PST"]
[Termination "bitter-cikolata won by resignation"]

1. e4 {[%clk 0:03:00.9]} 1... e5 {[%clk 0:02:58.8]} 2. Nf3 {[%clk 0:03:00.4]}
2... Nc6 {[%clk 0:02:59.2]} 3. Nc3 {[%clk 0:02:59.8]} 3... Nf6 {[%clk
0:02:59.3]} 4. d4 {[%clk 0:03:00.1]} 4... exd4 {[%clk 0:02:56.6]} 5. Nxd4 {[%clk
0:03:01]} 5... Bb4 {[%clk 0:02:52.8]} 6. Nxc6 {[%clk 0:03:00.7]} 6... bxc6
{[%clk 0:02:52.8]} 7. Bd3 {[%clk 0:03:01.2]} 7... O-O {[%clk 0:02:51.5]} 8. O-O
{[%clk 0:03:01.4]} 8... d6 {[%clk 0:02:51.7]} 9. Bg5 {[%clk 0:02:59.4]} 9... h6
{[%clk 0:02:51.1]} 10. Bh4 {[%clk 0:02:59.5]} 10... Re8 {[%clk 0:02:44.2]} 11.
h3 {[%clk 0:02:17.6]} 11... g5 {[%clk 0:02:29.2]} 12. Bg3 {[%clk 0:02:17]} 12...
Bxc3 {[%clk 0:02:25.8]} 13. bxc3 {[%clk 0:02:17.9]} 13... Nxe4 {[%clk
0:02:26.4]} 14. Qh5 {[%clk 0:02:12.4]} 14... Qf6 {[%clk 0:02:10.8]} 15. Rae1
{[%clk 0:02:11.1]} 15... Bf5 {[%clk 0:02:09.6]} 16. h4 {[%clk 0:01:54.1]} 16...
Qg6 {[%clk 0:01:47.8]} 17. Qf3 {[%clk 0:01:36.5]} 17... d5 {[%clk 0:01:03.2]}
18. Bxc7 {[%clk 0:01:08.4]} 18... gxh4 {[%clk 0:00:58]} 19. Re3 {[%clk 0:00:58]}
19... Kh7 {[%clk 0:00:49.6]} 20. Rfe1 {[%clk 0:00:40.6]} 20... Rg8 {[%clk
0:00:48.3]} 21. g3 {[%clk 0:00:40.1]} 21... Rg7 {[%clk 0:00:40.6]} 22. Be5
{[%clk 0:00:38.1]} 22... f6 {[%clk 0:00:31.9]} 23. Bf4 {[%clk 0:00:31.5]} 23...
Rag8 {[%clk 0:00:28.1]} 24. Qh1 {[%clk 0:00:29.1]} 24... hxg3 {[%clk 0:00:18.5]}
25. fxg3 {[%clk 0:00:25.8]} 25... h5 {[%clk 0:00:14.3]} 26. Qh4 {[%clk
0:00:20.6]} 26... Qg4 {[%clk 0:00:12.8]} 27. Qxg4 {[%clk 0:00:17.6]} 27... Rxg4
{[%clk 0:00:13.6]} 28. Kh2 {[%clk 0:00:15.7]} 28... h4 {[%clk 0:00:10.4]} 29.
Rf1 {[%clk 0:00:05.6]} 29... hxg3+ {[%clk 0:00:09.6]} 30. Kg2 {[%clk 0:00:06]}
30... Kg6 {[%clk 0:00:06.9]} 31. Bxg3 {[%clk 0:00:05.6]} 31... Kf7 {[%clk
0:00:04.1]} 32. Rxf5 {[%clk 0:00:05.2]} 32... Rxg3+ {[%clk 0:00:04.7]} 33. Rxg3
{[%clk 0:00:05.5]} 33... Rxg3+ {[%clk 0:00:05.6]} 34. Kh2 {[%clk 0:00:06.1]}
34... Rg5 {[%clk 0:00:02.9]} 35. Bxe4 {[%clk 0:00:06.1]} 35... dxe4 {[%clk
0:00:02.6]} 36. Rf4 {[%clk 0:00:06.5]} 36... f5 {[%clk 0:00:02.2]} 37. Rh4
{[%clk 0:00:07.2]} 37... Kf6 {[%clk 0:00:02.6]} 38. Rh7 {[%clk 0:00:07.5]} 38...
a5 {[%clk 0:00:02.6]} 39. Ra7 {[%clk 0:00:07.5]} 39... f4 {[%clk 0:00:02.2]} 40.
Rc7 {[%clk 0:00:07.8]} 40... Rc5 {[%clk 0:00:02.2]} 41. Rc8 {[%clk 0:00:07.2]}
41... Rxc3 {[%clk 0:00:02.4]} 42. Kg2 {[%clk 0:00:07.7]} 42... Rxc2+ {[%clk
0:00:02.7]} 43. Kf1 {[%clk 0:00:08.3]} 43... Ke5 {[%clk 0:00:02.9]} 44. Re8+
{[%clk 0:00:08.5]} 44... Kd4 {[%clk 0:00:03.4]} 45. Rd8+ {[%clk 0:00:08.9]}
45... Ke3 {[%clk 0:00:04]} 0-1

[Event "Early-Titled-Tuesday-Blitz-February-13-2024"]
[Site "Chess.com"]
[Date "2024.02.13"]
[Round "5"]
[White "SergioMoralesG"]
[Black "itsdsyr"]
[Result "0-1"]
[WhiteElo "2489"]
[BlackElo "2328"]
[TimeControl "180+1"]
[EndTime "9:00:19 PST"]
[Termination "itsdsyr won on time"]

1. d4 {[%clk 0:02:16.8]} 1... Nf6 {[%clk 0:02:59.3]} 2. c4 {[%clk 0:02:16.6]}
2... e6 {[%clk 0:02:59.1]} 3. Nf3 {[%clk 0:02:17.1]} 3... b6 {[%clk 0:02:58.6]}
4. g3 {[%clk 0:02:16.9]} 4... Ba6 {[%clk 0:02:58.2]} 5. b3 {[%clk 0:02:16.6]}
5... Bb4+ {[%clk 0:02:57.4]} 6. Bd2 {[%clk 0:02:16.5]} 6... Be7 {[%clk
0:02:57.5]} 7. Bc3 {[%clk 0:02:16.7]} 7... O-O {[%clk 0:02:53.4]} 8. Nbd2 {[%clk
0:02:16.6]} 8... d5 {[%clk 0:02:50.6]} 9. Bg2 {[%clk 0:02:17.1]} 9... Bb7 {[%clk
0:02:47.8]} 10. O-O {[%clk 0:02:14.8]} 10... Nbd7 {[%clk 0:02:47.6]} 11. a3
{[%clk 0:02:11]} 11... c5 {[%clk 0:02:45.2]} 12. Rc1 {[%clk 0:02:04.3]} 12...
cxd4 {[%clk 0:02:41.3]} 13. Nxd4 {[%clk 0:02:03.9]} 13... Bxa3 {[%clk
0:02:40.7]} 14. Ra1 {[%clk 0:02:00.3]} 14... Be7 {[%clk 0:02:35.2]} 15. Qb1
{[%clk 0:01:48]} 15... a6 {[%clk 0:02:22.9]} 16. Rd1 {[%clk 0:01:45.9]} 16...
Qc7 {[%clk 0:02:19.7]} 17. Qb2 {[%clk 0:01:35]} 17... Nc5 {[%clk 0:02:06.2]} 18.
N4f3 {[%clk 0:01:22.2]} 18... Rfd8 {[%clk 0:01:55.8]} 19. h3 {[%clk 0:01:12.5]}
19... dxc4 {[%clk 0:01:42.2]} 20. bxc4 {[%clk 0:01:11.8]} 20... Nce4 {[%clk
0:01:35]} 21. Be5 {[%clk 0:01:08.9]} 21... Qc5 {[%clk 0:01:18.6]} 22. Bd4 {[%clk
0:00:58.7]} 22... Qc8 {[%clk 0:00:59.6]} 23. Bxb6 {[%clk 0:00:52.5]} 23... Rd7
{[%clk 0:00:35.5]} 24. Rac1 {[%clk 0:00:33.8]} 24... Bc5 {[%clk 0:00:30.8]} 25.
e3 {[%clk 0:00:15.6]} 25... Qc6 {[%clk 0:00:19.6]} 26. Bxc5 {[%clk 0:00:13.7]}
26... Qxc5 {[%clk 0:00:18.1]} 27. Ne5 {[%clk 0:00:10.2]} 27... Rxd2 {[%clk
0:00:10.9]} 28. Rxd2 {[%clk 0:00:07.9]} 28... Nxd2 {[%clk 0:00:11.8]} 29. Qxb7
{[%clk 0:00:07.2]} 29... Rf8 {[%clk 0:00:11]} 30. Nd7 {[%clk 0:00:03.5]} 30...
Nxd7 {[%clk 0:00:10.5]} 31. Qxd7 {[%clk 0:00:04.4]} 31... a5 {[%clk 0:00:09.6]}
32. Qxd2 {[%clk 0:00:04.2]} 32... h6 {[%clk 0:00:09.3]} 33. Qd4 {[%clk
0:00:04.3]} 33... Qa3 {[%clk 0:00:09]} 34. Rd1 {[%clk 0:00:03.8]} 34... Rc8
{[%clk 0:00:06.9]} 35. h4 {[%clk 0:00:02.4]} 35... a4 {[%clk 0:00:06.6]} 36. Be4
{[%clk 0:00:02.2]} 36... Qc5 {[%clk 0:00:03.5]} 37. Bb1 {[%clk 0:00:01.3]} 37...
Qe7 {[%clk 0:00:02.7]} 0-1

[Event "Early-Titled-Tuesday-Blitz-February-13-2024"]
[Site "Chess.com"]
[Date "2024.02.13"]
[Round "5"]
[White "Agibileg"]
[Black "secretsuperstar7"]
[Result "1-0"]
[WhiteElo "2725"]
[BlackElo "2515"]
[TimeControl "180+1"]
[EndTime "9:00:20 PST"]
[Termination "Agibileg won on time"]

1. d4 {[%clk 0:03:00.9]} 1... d5 {[%clk 0:02:59.5]} 2. c4 {[%clk 0:03:00.5]}
2... e6 {[%clk 0:02:58]} 3. Nc3 {[%clk 0:02:59.2]} 3... c6 {[%clk 0:02:55.1]} 4.
Nf3 {[%clk 0:02:58.1]} 4... Nf6 {[%clk 0:02:53.2]} 5. Bg5 {[%clk 0:02:57.2]}
5... Nbd7 {[%clk 0:02:49.7]} 6. cxd5 {[%clk 0:02:55.1]} 6... exd5 {[%clk
0:02:49.5]} 7. e3 {[%clk 0:02:55.2]} 7... h6 {[%clk 0:02:46.4]} 8. Bh4 {[%clk
0:02:53.6]} 8... Be7 {[%clk 0:02:43.1]} 9. Bd3 {[%clk 0:02:53.8]} 9... Ne4
{[%clk 0:02:41.6]} 10. Bxe7 {[%clk 0:02:52.2]} 10... Qxe7 {[%clk 0:02:41.9]} 11.
O-O {[%clk 0:02:50.7]} 11... O-O {[%clk 0:02:41.4]} 12. Qc2 {[%clk 0:02:43.5]}
12... f5 {[%clk 0:02:41]} 13. Rab1 {[%clk 0:02:33.1]} 13... b6 {[%clk
0:02:36.9]} 14. Rfe1 {[%clk 0:02:24.6]} 14... Bb7 {[%clk 0:02:36.8]} 15. Nd2
{[%clk 0:02:23.4]} 15... c5 {[%clk 0:02:14.9]} 16. dxc5 {[%clk 0:02:18.3]} 16...
Ndxc5 {[%clk 0:02:04.7]} 17. Bf1 {[%clk 0:02:14.2]} 17... Rac8 {[%clk
0:01:59.9]} 18. f3 {[%clk 0:02:12.2]} 18... Nxc3 {[%clk 0:01:57.8]} 19. bxc3
{[%clk 0:02:09.8]} 19... Qf6 {[%clk 0:01:54.9]} 20. c4 {[%clk 0:02:07.2]} 20...
d4 {[%clk 0:01:50.7]} 21. exd4 {[%clk 0:02:04.4]} 21... Qxd4+ {[%clk 0:01:50.3]}
22. Kh1 {[%clk 0:02:04.7]} 22... Rcd8 {[%clk 0:01:35.8]} 23. Nb3 {[%clk
0:02:04.4]} 23... Qd6 {[%clk 0:01:34.6]} 24. Nxc5 {[%clk 0:02:00.3]} 24... Qxc5
{[%clk 0:01:34.5]} 25. Rb5 {[%clk 0:02:00.8]} 25... Qc8 {[%clk 0:01:28.8]} 26.
Re7 {[%clk 0:01:52.3]} 26... Ba6 {[%clk 0:00:59.5]} 27. Rbe5 {[%clk 0:01:31.6]}
27... Rd7 {[%clk 0:00:59.1]} 28. Qc3 {[%clk 0:01:12.2]} 28... Rxe7 {[%clk
0:00:47.5]} 29. Rxe7 {[%clk 0:01:13.1]} 29... Rf6 {[%clk 0:00:47.8]} 30. Rxa7
{[%clk 0:01:05.2]} 30... b5 {[%clk 0:00:38.4]} 31. c5 {[%clk 0:01:00.6]} 31...
Kh8 {[%clk 0:00:28.2]} 32. Qd4 {[%clk 0:00:50.4]} 32... Qe8 {[%clk 0:00:23.5]}
33. Qf2 {[%clk 0:00:38.5]} 33... Qe5 {[%clk 0:00:15.2]} 34. h3 {[%clk
0:00:34.9]} 34... Rg6 {[%clk 0:00:11.4]} 35. a4 {[%clk 0:00:34.4]} 35... bxa4
{[%clk 0:00:10.2]} 36. Bxa6 {[%clk 0:00:28.7]} 36... Qa1+ {[%clk 0:00:09.9]} 37.
Kh2 {[%clk 0:00:27.5]} 37... Qe5+ {[%clk 0:00:09.8]} 38. f4 {[%clk 0:00:27.9]}
38... Qe4 {[%clk 0:00:08.3]} 39. Bb7 {[%clk 0:00:22.7]} 39... Qc4 {[%clk
0:00:02.5]} 40. c6 {[%clk 0:00:14.8]} 40... h5 {[%clk 0:00:01.5]} 41. Ra8+
{[%clk 0:00:13.1]} 41... Kh7 {[%clk 0:00:01.8]} 42. Qh4 {[%clk 0:00:09.8]} 1-0

[Event "Early-Titled-Tuesday-Blitz-February-13-2024"]
[Site "Chess.com"]
[Date "2024.02.13"]
[Round "5"]
[White "tandaleo"]
[Black "akanga001"]
[Result "1-0"]
[WhiteElo "2538"]
[BlackElo "2023"]
[TimeControl "180+1"]
[EndTime "9:00:20 PST"]
[Termination "tandaleo won by resignation"]

1. d4 {[%clk 0:02:56.8]} 1... d5 {[%clk 0:02:57.9]} 2. c4 {[%clk 0:02:55.5]}
2... e6 {[%clk 0:02:58.3]} 3. Nf3 {[%clk 0:02:46.4]} 3... a6 {[%clk 0:02:58.5]}
4. Nbd2 {[%clk 0:02:46.8]} 4... Nf6 {[%clk 0:02:55.4]} 5. e3 {[%clk 0:02:46.5]}
5... dxc4 {[%clk 0:02:54]} 6. Bxc4 {[%clk 0:02:46.3]} 6... b5 {[%clk 0:02:54.6]}
7. Be2 {[%clk 0:02:46.2]} 7... Bb7 {[%clk 0:02:55.3]} 8. b3 {[%clk 0:02:45.1]}
8... c5 {[%clk 0:02:55.4]} 9. Bb2 {[%clk 0:02:45.2]} 9... cxd4 {[%clk
0:02:53.3]} 10. Nxd4 {[%clk 0:02:37.1]} 10... Be7 {[%clk 0:02:51.5]} 11. O-O
{[%clk 0:02:37]} 11... Nbd7 {[%clk 0:02:51]} 12. Bf3 {[%clk 0:02:36.6]} 12...
Bxf3 {[%clk 0:02:48.7]} 13. Qxf3 {[%clk 0:02:37.5]} 13... Ne5 {[%clk 0:02:47.2]}
14. Qg3 {[%clk 0:02:33.1]} 14... Ng6 {[%clk 0:02:46.2]} 15. Rfd1 {[%clk
0:02:27.3]} 15... O-O {[%clk 0:02:45.4]} 16. a4 {[%clk 0:02:13.5]} 16... bxa4
{[%clk 0:02:44]} 17. Rxa4 {[%clk 0:02:13.6]} 17... Qb6 {[%clk 0:02:41.1]} 18.
Nc4 {[%clk 0:02:12]} 18... Qb7 {[%clk 0:02:34.7]} 19. Na5 {[%clk 0:02:11]} 19...
Qe4 {[%clk 0:02:33.5]} 20. Rc1 {[%clk 0:01:16.2]} 20... Rfc8 {[%clk 0:02:30.1]}
21. Ndc6 {[%clk 0:01:16.5]} 21... Qd3 {[%clk 0:02:21.4]} 22. Rd4 {[%clk
0:00:59.7]} 22... Qb5 {[%clk 0:02:18.7]} 23. Rdc4 {[%clk 0:00:32.7]} 23... Re8
{[%clk 0:02:15.4]} 24. Nxe7+ {[%clk 0:00:30.2]} 24... Rxe7 {[%clk 0:02:11.7]}
25. Rc5 {[%clk 0:00:26.1]} 25... Qb4 {[%clk 0:02:04.7]} 26. Bxf6 {[%clk
0:00:20.5]} 26... gxf6 {[%clk 0:02:04.1]} 27. h4 {[%clk 0:00:20.9]} 27... Kh8
{[%clk 0:01:51.8]} 28. h5 {[%clk 0:00:21.1]} 28... Ne5 {[%clk 0:01:51.9]} 29.
Rc8+ {[%clk 0:00:19.1]} 29... Re8 {[%clk 0:01:51.8]} 30. Rxa8 {[%clk 0:00:17.8]}
30... Rxa8 {[%clk 0:01:51.7]} 31. h6 {[%clk 0:00:16.9]} 31... Rg8 {[%clk
0:01:51.6]} 32. Rc8 {[%clk 0:00:17]} 32... Ng6 {[%clk 0:01:51.1]} 33. Rxg8+
{[%clk 0:00:16.2]} 33... Kxg8 {[%clk 0:01:50.6]} 34. Nc6 {[%clk 0:00:16.5]}
34... Qf8 {[%clk 0:01:47.4]} 35. Qb8 {[%clk 0:00:13.6]} 35... f5 {[%clk
0:01:39.5]} 36. Qxf8+ {[%clk 0:00:13.3]} 36... Kxf8 {[%clk 0:01:37]} 37. Nb8
{[%clk 0:00:13.7]} 37... a5 {[%clk 0:01:35.9]} 38. Nc6 {[%clk 0:00:14.3]} 38...
Ke8 {[%clk 0:01:34.4]} 39. Nxa5 {[%clk 0:00:14.6]} 39... Kd7 {[%clk 0:01:34.8]}
40. Nc4 {[%clk 0:00:14.7]} 40... Kc6 {[%clk 0:01:34.9]} 41. Nb2 {[%clk
0:00:10.6]} 41... Kc5 {[%clk 0:01:35.2]} 42. Nd3+ {[%clk 0:00:11]} 42... Kd5
{[%clk 0:01:33.9]} 43. Kf1 {[%clk 0:00:10.8]} 43... e5 {[%clk 0:01:33.9]} 44.
Ke2 {[%clk 0:00:11.3]} 44... e4 {[%clk 0:01:33.6]} 45. Ne1 {[%clk 0:00:11.8]}
45... Kc5 {[%clk 0:01:33.7]} 46. Nc2 {[%clk 0:00:12.1]} 46... Ne5 {[%clk
0:01:32.5]} 47. Nd4 {[%clk 0:00:11.9]} 47... f4 {[%clk 0:01:31.2]} 48. b4+
{[%clk 0:00:06.8]} 48... Kc4 {[%clk 0:01:28.6]} 49. b5 {[%clk 0:00:07]} 49...
Nd7 {[%clk 0:01:25.2]} 50. Kd2 {[%clk 0:00:03.1]} 50... fxe3+ {[%clk 0:01:21.2]}
51. fxe3 {[%clk 0:00:04]} 51... Nb6 {[%clk 0:01:20.9]} 52. Nf5 {[%clk
0:00:03.5]} 52... Kxb5 {[%clk 0:01:19.6]} 53. Nd6+ {[%clk 0:00:04.1]} 53... Kc5
{[%clk 0:01:19.6]} 54. Nxf7 {[%clk 0:00:04.5]} 54... Kd5 {[%clk 0:01:19.7]} 55.
Ng5 {[%clk 0:00:04.9]} 55... Nd7 {[%clk 0:01:12.4]} 56. Nxh7 {[%clk 0:00:04.9]}
56... Ke5 {[%clk 0:01:13.1]} 57. Ng5 {[%clk 0:00:05]} 57... Kf5 {[%clk
0:01:13.4]} 58. h7 {[%clk 0:00:05.3]} 58... Kxg5 {[%clk 0:01:09.7]} 59. h8=Q
{[%clk 0:00:06.2]} 59... Kf5 {[%clk 0:01:08.3]} 60. Qh7+ {[%clk 0:00:05.3]}
60... Ke5 {[%clk 0:01:07.3]} 61. Qxd7 {[%clk 0:00:05.6]} 61... Kf6 {[%clk
0:01:01.5]} 62. Qg4 {[%clk 0:00:06.3]} 62... Ke5 {[%clk 0:01:02.4]} 63. Qf4+
{[%clk 0:00:06.9]} 63... Kd5 {[%clk 0:01:02.4]} 64. Qf5+ {[%clk 0:00:07.4]}
64... Kc4 {[%clk 0:01:02.7]} 65. Qxe4+ {[%clk 0:00:08.3]} 1-0

[Event "Early-Titled-Tuesday-Blitz-February-13-2024"]
[Site "Chess.com"]
[Date "2024.02.13"]
[Round "5"]
[White "BlueWizzard"]
[Black "M1711"]
[Result "1-0"]
[WhiteElo "2874"]
[BlackElo "2647"]
[TimeControl "180+1"]
[EndTime "9:00:21 PST"]
[Termination "BlueWizzard won by resignation"]

1. d4 {[%clk 0:03:00.9]} 1... Nf6 {[%clk 0:02:59.1]} 2. Nc3 {[%clk 0:03:01.6]}
2... d5 {[%clk 0:02:58.7]} 3. Nf3 {[%clk 0:03:01.3]} 3... c5 {[%clk 0:02:57.5]}
4. Bg5 {[%clk 0:03:01.2]} 4... Nc6 {[%clk 0:02:52.3]} 5. e3 {[%clk 0:02:53.6]}
5... cxd4 {[%clk 0:02:50.4]} 6. exd4 {[%clk 0:02:53.4]} 6... Bg4 {[%clk
0:02:49.9]} 7. h3 {[%clk 0:02:50.9]} 7... Bxf3 {[%clk 0:02:42.6]} 8. Qxf3 {[%clk
0:02:51.8]} 8... Nxd4 {[%clk 0:02:42.5]} 9. Qd3 {[%clk 0:02:47.1]} 9... e5
{[%clk 0:02:32.1]} 10. O-O-O {[%clk 0:02:33.8]} 10... h6 {[%clk 0:02:03.8]} 11.
f4 {[%clk 0:02:33.7]} 11... hxg5 {[%clk 0:01:43.9]} 12. fxe5 {[%clk 0:02:33.3]}
12... Bc5 {[%clk 0:01:32.2]} 13. Na4 {[%clk 0:02:16.4]} 13... Ne4 {[%clk
0:01:07.8]} 14. Nxc5 {[%clk 0:02:15.8]} 14... Nxc5 {[%clk 0:01:08.7]} 15. Qxd4
{[%clk 0:02:16.1]} 15... Ne6 {[%clk 0:01:08.8]} 16. Qb4 {[%clk 0:02:08.9]} 16...
Qe7 {[%clk 0:01:07.4]} 17. Qb3 {[%clk 0:01:59.1]} 17... O-O-O {[%clk 0:00:58.2]}
18. Be2 {[%clk 0:01:58.5]} 18... Kb8 {[%clk 0:00:53.3]} 19. Bf3 {[%clk
0:01:57.6]} 19... Qc7 {[%clk 0:00:43.6]} 20. Bxd5 {[%clk 0:01:56]} 20... Nc5
{[%clk 0:00:41.6]} 21. Qc4 {[%clk 0:01:47.3]} 21... Rhe8 {[%clk 0:00:36.6]} 22.
Bxf7 {[%clk 0:01:40.4]} 22... Rxd1+ {[%clk 0:00:36.6]} 23. Rxd1 {[%clk
0:01:41.2]} 23... Rxe5 {[%clk 0:00:36.9]} 24. Bh5 {[%clk 0:01:28.9]} 24... a6
{[%clk 0:00:35.6]} 25. Bf3 {[%clk 0:01:25.6]} 25... Ne6 {[%clk 0:00:34.2]} 26.
Qb4 {[%clk 0:01:16]} 26... Nc5 {[%clk 0:00:30.4]} 27. b3 {[%clk 0:01:11.2]}
27... Re3 {[%clk 0:00:24.5]} 28. Kb2 {[%clk 0:01:08.3]} 28... Re5 {[%clk
0:00:19]} 29. Rd4 {[%clk 0:01:04.4]} 29... Ne6 {[%clk 0:00:18.1]} 30. Rc4 {[%clk
0:01:03.7]} 30... Rc5 {[%clk 0:00:18.9]} 31. Rxc5 {[%clk 0:00:55.7]} 31... Nxc5
{[%clk 0:00:19.8]} 32. Qd4 {[%clk 0:00:52]} 32... Qe7 {[%clk 0:00:19.2]} 33. Bd5
{[%clk 0:00:51.5]} 33... Kc7 {[%clk 0:00:14.7]} 34. b4 {[%clk 0:00:49.7]} 34...
Nd7 {[%clk 0:00:14.3]} 35. Kc3 {[%clk 0:00:45.4]} 35... Nb6 {[%clk 0:00:10.1]}
36. Bb3 {[%clk 0:00:41.8]} 36... Qf6 {[%clk 0:00:07.6]} 37. a3 {[%clk
0:00:40.2]} 37... Nd7 {[%clk 0:00:06.2]} 38. Kd3 {[%clk 0:00:37]} 38... Ne5+
{[%clk 0:00:05.2]} 39. Ke4 {[%clk 0:00:31]} 39... Qf4+ {[%clk 0:00:02.1]} 40.
Kd5 {[%clk 0:00:31.4]} 40... Qxd4+ {[%clk 0:00:01.9]} 41. Kxd4 {[%clk
0:00:31.7]} 41... Kd6 {[%clk 0:00:02.8]} 42. c4 {[%clk 0:00:30.2]} 42... Nc6+
{[%clk 0:00:02.3]} 43. Ke4 {[%clk 0:00:30.6]} 43... b6 {[%clk 0:00:01.8]} 44.
Ba4 {[%clk 0:00:29]} 44... Ne7 {[%clk 0:00:02]} 45. Bc2 {[%clk 0:00:25.8]} 45...
Ke6 {[%clk 0:00:02.3]} 46. c5 {[%clk 0:00:24.1]} 46... bxc5 {[%clk 0:00:03.2]}
47. bxc5 {[%clk 0:00:24.8]} 47... Kd7 {[%clk 0:00:03.6]} 48. Ba4+ {[%clk
0:00:24.7]} 48... Ke6 {[%clk 0:00:03.4]} 49. Be8 {[%clk 0:00:22.9]} 49... Kf6
{[%clk 0:00:02.7]} 50. Bd7 {[%clk 0:00:20.6]} 50... Kf7 {[%clk 0:00:01.9]} 51.
Ke5 {[%clk 0:00:20.7]} 51... Ng6+ {[%clk 0:00:02.1]} 52. Kd6 {[%clk 0:00:20.9]}
52... Nf4 {[%clk 0:00:02.6]} 53. c6 {[%clk 0:00:21.4]} 53... Nxg2 {[%clk
0:00:02.5]} 54. c7 {[%clk 0:00:22.1]} 1-0